bitfinex/quotes_BTCUSD_20241103
["timestamp","ask_amount","ask_price","bid_price","bid_amount"]
[1730607241636,0.08012559,68432.0,68431.0,0.31892904]
[1730607241855,0.11568706,68432.0,68431.0,0.31892904]
[1730607242756,0.03656147,68432.0,68431.0,0.31892904]
[1730607247246,0.01467749,68432.0,68431.0,0.31892904]
[1730607248246,0.0365676,68432.0,68431.0,0.31892904]
[1730607249140,0.01467749,68432.0,68431.0,0.31892904]
[1730607251360,0.03657631,68432.0,68431.0,0.31892904]
[1730607255287,0.03657631,68432.0,68431.0,0.32622921]
[1730607258020,0.03657631,68432.0,68431.0,0.32786721]
[1730607259513,0.03657631,68432.0,68431.0,0.32787503]
[1730607261251,0.001,68432.0,68431.0,0.32056704]
[1730607263495,0.001,68432.0,68431.0,0.64615365]
[1730607263722,0.001,68432.0,68431.0,0.78812832]
[1730607264144,0.001,68432.0,68431.0,0.80994665]
[1730607265017,0.0476,68441.0,68440.0,0.156113]
[1730607265223,0.0476,68441.0,68440.0,0.30191004]
[1730607265898,0.0476,68441.0,68440.0,0.33116004]
[1730607266114,0.0476,68441.0,68440.0,0.30191004]
[1730607266345,0.0476,68441.0,68440.0,0.31291004]
[1730607266555,0.0476,68441.0,68440.0,0.31791004]
[1730607272402,0.0476,68441.0,68440.0,0.32155624]
[1730607273296,0.0476,68441.0,68440.0,0.54214285]
[1730607273522,0.000819,68444.0,68443.0,0.156106]
[1730607273750,0.000819,68444.0,68443.0,0.30190304]
[1730607274444,0.000819,68444.0,68443.0,0.40190304]
[1730607274909,0.000819,68444.0,68443.0,0.40690304]
[1730607275119,0.000819,68444.0,68443.0,0.46148317]
[1730607275349,0.000819,68444.0,68443.0,0.46648317]
[1730607275767,0.000819,68444.0,68443.0,0.48973317]
[1730607275971,0.000819,68444.0,68443.0,0.49573317]
[1730607276435,0.000819,68444.0,68443.0,0.48973317]
[1730607276879,0.000819,68444.0,68443.0,0.49573317]
[1730607277317,0.000819,68444.0,68443.0,0.45215304]
[1730607277546,0.000819,68444.0,68443.0,0.75386524]
[1730607277767,0.000819,68444.0,68443.0,0.53327863]
[1730607277988,0.000819,68444.0,68443.0,0.57685876]
[1730607278217,0.000819,68444.0,68443.0,0.53827863]
[1730607278402,0.000819,68444.0,68443.0,0.52727863]
[1730607278643,0.000819,68444.0,68443.0,0.53327863]
[1730607279078,0.000819,68444.0,68443.0,0.52227863]
[1730607279314,0.000819,68444.0,68443.0,0.52727863]
[1730607279819,0.000819,68444.0,68443.0,0.53827863]
[1730607281575,0.000819,68444.0,68443.0,0.53627863]
[1730607285431,0.000819,68444.0,68443.0,0.52527863]
[1730607285637,0.000819,68444.0,68443.0,0.52027863]
[1730607285818,0.000819,68444.0,68443.0,0.53627863]
[1730607286231,0.000819,68444.0,68443.0,0.53127863]
[1730607286442,0.000819,68444.0,68443.0,0.52527863]
[1730607287496,0.000819,68444.0,68443.0,0.52727863]
[1730607287711,0.000819,68444.0,68443.0,0.53827863]
[1730607290944,0.000819,68444.0,68443.0,0.53627863]
[1730607299258,0.000819,68444.0,68443.0,0.52027863]
[1730607299668,0.000819,68444.0,68443.0,0.53627863]
[1730607300747,0.000819,68457.0,68456.0,0.161079]
[1730607300982,0.000819,68457.0,68456.0,0.43612604]
[1730607301628,0.121819,68457.0,68456.0,0.43112604]
[1730607302500,0.121819,68457.0,68456.0,0.44712604]
[1730607302752,0.121819,68457.0,68456.0,0.44212604]
[1730607302974,0.121819,68457.0,68456.0,0.44712604]
[1730607303412,0.121819,68457.0,68456.0,0.44212604]
[1730607303633,0.121819,68457.0,68456.0,0.44712604]
[1730607304046,0.121819,68457.0,68456.0,0.43612604]
[1730607304249,0.121819,68457.0,68456.0,0.44712604]
[1730607306307,0.121819,68457.0,68456.0,0.45074026]
[1730607307363,0.121819,68457.0,68456.0,0.42149026]
[1730607312583,0.121819,68457.0,68456.0,0.64207687]
[1730607312795,0.121819,68457.0,68456.0,0.42149026]
[1730607315495,0.046619,68457.0,68456.0,0.64207687]
[1730607315710,0.046619,68457.0,68456.0,0.42649026]
[1730607316189,0.046619,68457.0,68456.0,0.45574026]
[1730607317092,0.046619,68457.0,68456.0,0.49930272]
[1730607317302,0.046619,68457.0,68456.0,0.45574026]
[1730607317493,0.046619,68457.0,68456.0,0.49931322]
[1730607317769,0.046619,68457.0,68456.0,0.52108395]
[1730607318189,0.046619,68457.0,68456.0,0.68194932]
[1730607319248,0.046619,68457.0,68456.0,0.61660563]
[1730607319678,0.046619,68457.0,68456.0,0.68197367]
[1730607320344,0.046619,68457.0,68456.0,0.45574026]
[1730607320764,0.046619,68457.0,68456.0,0.49933529]
[1730607322027,0.046619,68457.0,68456.0,0.45574026]
[1730607323328,0.123619,68457.0,68456.0,0.45574026]
[1730607323806,0.13732324,68457.0,68456.0,0.45574026]
[1730607324063,0.13732324,68457.0,68456.0,0.46303359]
[1730607324931,0.123619,68457.0,68456.0,0.52840395]
[1730607325177,0.123619,68457.0,68456.0,0.49930647]
[1730607325178,0.046619,68457.0,68456.0,0.49930647]
[1730607326052,0.046619,68457.0,68456.0,0.45574026]
[1730607326266,0.06032345,68457.0,68456.0,0.50659578]
[1730607326702,0.06032345,68457.0,68456.0,0.46302957]
[1730607327377,0.06032345,68457.0,68456.0,0.45802957]
[1730607327611,0.15923929,68457.0,68456.0,0.32516535]
[1730607327854,0.15923929,68457.0,68456.0,0.021]
[1730607328960,0.15918228,68457.0,68456.0,0.021]
[1730607330937,0.123619,68457.0,68456.0,0.021]
[1730607332247,0.13729351,68457.0,68456.0,0.167079]
[1730607332908,0.123619,68457.0,68456.0,0.167079]
[1730607333146,0.13729484,68457.0,68456.0,0.167079]
[1730607335355,0.13729484,68457.0,68456.0,0.31787604]
[1730607336284,0.13729484,68457.0,68456.0,0.34712604]
[1730607336486,0.123619,68457.0,68456.0,0.34712604]
[1730607337419,0.13729898,68457.0,68456.0,0.34712604]
[1730607339041,0.13730114,68457.0,68456.0,0.34712604]
[1730607340400,0.13716117,68457.0,68456.0,0.34712604]
[1730607340862,0.12347903,68457.0,68456.0,0.34712604]
[1730607341089,0.13716285,68457.0,68456.0,0.34712604]
[1730607342220,0.12347903,68457.0,68456.0,0.34712604]
[1730607343355,0.13716357,68457.0,68456.0,0.34712604]
[1730607344747,0.13716357,68457.0,68456.0,0.16679704]
[1730607344993,0.13716357,68457.0,68456.0,0.31287604]
[1730607345492,0.13716357,68457.0,68456.0,0.31787604]
[1730607345750,0.13716357,68457.0,68456.0,0.167079]
[1730607346279,0.13716357,68457.0,68456.0,0.021]
[1730607347235,0.21628916,68457.0,68456.0,0.021]
[1730607347674,0.21628916,68457.0,68456.0,0.167079]
[1730607347920,0.21628916,68457.0,68456.0,0.021]
[1730607348135,0.20260462,68457.0,68456.0,0.167079]
[1730607348568,0.20260462,68457.0,68456.0,0.021]
[1730607348994,0.20260462,68457.0,68456.0,0.167079]
[1730607349868,0.21629134,68457.0,68456.0,0.167079]
[1730607350314,0.20260462,68457.0,68456.0,0.167079]
[1730607350743,0.19760462,68457.0,68456.0,0.167079]
[1730607352109,0.19760462,68457.0,68456.0,0.168717]
[1730607352361,0.19842362,68457.0,68456.0,0.168717]
[1730607355833,0.11929803,68457.0,68456.0,0.168717]
[1730607356267,0.11929803,68457.0,68456.0,0.197967]
[1730607362303,0.04229803,68457.0,68456.0,0.45376404]
[1730607364461,0.11949803,68457.0,68456.0,0.31451404]
[1730607365121,0.11949803,68457.0,68456.0,0.31951404]
[1730607365328,0.11949803,68457.0,68456.0,0.31451404]
[1730607365971,0.11949803,68457.0,68456.0,0.168717]
[1730607366178,0.11949803,68457.0,68456.0,0.022638]
[1730607366587,0.11949803,68457.0,68456.0,0.168717]
[1730607366843,0.11949803,68457.0,68456.0,0.173717]
[1730607368392,0.11949803,68457.0,68456.0,0.31951404]
[1730607368601,0.04229803,68457.0,68456.0,0.31951404]
[1730607370585,0.000819,68457.0,68456.0,0.41951404]
[1730607371046,0.01451194,68457.0,68456.0,0.41951404]
[1730607371271,0.01451193,68457.0,68456.0,0.41951404]
[1730607371518,0.05832929,68457.0,68456.0,0.41951404]
[1730607374840,0.02272768,68457.0,68456.0,0.41951404]
[1730607375073,0.05832291,68457.0,68456.0,0.41951404]
[1730607375959,0.03641423,68457.0,68456.0,0.41951404]
[1730607376413,0.03641423,68457.0,68456.0,0.44876404]
[1730607378685,0.000819,68457.0,68456.0,0.44876404]
[1730607378899,0.03641148,68457.0,68456.0,0.44876404]
[1730607382475,0.03641172,68457.0,68456.0,0.44876404]
[1730607383978,0.03641205,68457.0,68456.0,0.44876404]
[1730607389150,0.08261205,68457.0,68456.0,0.44876404]
[1730607389576,0.047019,68457.0,68456.0,0.44876404]
[1730607389782,0.08261813,68457.0,68456.0,0.44876404]
[1730607390854,0.08261813,68457.0,68456.0,0.45604961]
[1730607391279,0.08261992,68457.0,68456.0,0.45604961]
[1730607391973,0.08261992,68457.0,68456.0,0.45104961]
[1730607392169,0.08261992,68457.0,68456.0,0.44004961]
[1730607392645,0.08261992,68457.0,68456.0,0.45104961]
[1730607393132,0.047019,68457.0,68456.0,0.45104961]
[1730607393342,0.08262481,68457.0,68456.0,0.45605109]
[1730607396642,0.047019,68457.0,68456.0,0.44876404]
[1730607396921,0.08262964,68457.0,68456.0,0.45605388]
[1730607399507,0.16452964,68457.0,68456.0,0.45605388]
[1730607400169,0.16454304,68457.0,68456.0,0.45605388]
[1730607403636,0.15084267,68457.0,68456.0,0.45605388]
[1730607403845,0.16454496,68457.0,68456.0,0.45605388]
[1730607404899,0.24367055,68457.0,68456.0,0.42680388]
[1730607405348,0.24367055,68457.0,68456.0,0.41951404]
[1730607405767,0.24367055,68457.0,68456.0,0.42680388]
[1730607406392,0.24367055,68457.0,68456.0,0.45605388]
[1730607406607,0.24367055,68457.0,68456.0,0.42680388]
[1730607408288,0.16454496,68457.0,68456.0,0.42680388]
[1730607408555,0.08264496,68457.0,68456.0,0.42680388]
[1730607410286,0.08264496,68457.0,68456.0,0.42681085]
[1730607410954,0.08264274,68457.0,68456.0,0.42681108]
[1730607414637,0.0826427,68457.0,68456.0,0.42681303]
[1730607414851,0.0826427,68457.0,68456.0,0.41951404]
[1730607415038,0.0826427,68457.0,68456.0,0.42681368]
[1730607415489,0.08264269,68457.0,68456.0,0.42681368]
[1730607416588,0.08264251,68457.0,68456.0,0.45606409]
[1730607422459,0.08264347,68457.0,68456.0,0.45606409]
[1730607424904,0.047019,68457.0,68456.0,0.45606582]
[1730607425118,0.08264522,68457.0,68456.0,0.45606582]
[1730607425332,0.08264522,68457.0,68456.0,0.45606581]
[1730607426745,0.08264649,68457.0,68456.0,0.45606581]
[1730607427779,0.08264649,68457.0,68456.0,0.49964772]
[1730607428468,0.047019,68457.0,68456.0,0.49234595]
[1730607428679,0.08264778,68457.0,68456.0,0.45606699]
[1730607432642,0.08264778,68457.0,68456.0,0.45601342]
[1730607434575,0.16154778,68457.0,68456.0,0.45601342]
[1730607434818,0.24067337,68457.0,68456.0,0.45601342]
[1730607438928,0.16154778,68457.0,68456.0,0.19791343]
[1730607439140,0.16154778,68457.0,68456.0,0.16866343]
[1730607439395,0.24067337,68457.0,68456.0,0.16866343]
[1730607440260,0.24067337,68457.0,68456.0,0.17366343]
[1730607440691,0.27951131,68457.0,68456.0,0.17366343]
[1730607442038,0.16154778,68457.0,68456.0,0.17366343]
[1730607442977,0.24067337,68457.0,68456.0,0.16866343]
[1730607443235,0.24067337,68457.0,68456.0,0.02258443]
[1730607443460,0.38675037,68457.0,68456.0,0.017638]
[1730607444376,0.38675037,68457.0,68456.0,0.006638]
[1730607444594,0.292158,68456.0,68446.0,0.00494643]
[1730607444816,0.20272559,68447.0,68446.0,0.00494643]
[1730607445062,0.23835437,68447.0,68446.0,0.15104643]
[1730607445716,0.23835437,68447.0,68446.0,0.16204643]
[1730607446441,0.23835437,68447.0,68446.0,0.15104643]
[1730607446703,0.23830503,68447.0,68446.0,0.15604643]
[1730607447172,0.22683684,68447.0,68446.0,0.15604643]
[1730607447824,0.15917944,68447.0,68446.0,0.16704643]
[1730607452584,0.03869744,68469.0,68468.0,0.292107]
[1730607452809,4.505e-05,68474.0,68473.0,0.01994643]
[1730607453030,4.505e-05,68474.0,68473.0,0.26890817]
[1730607453447,5e-08,68474.0,68473.0,0.43178637]
[1730607453448,0.0090209,68478.0,68477.0,0.26798043]
[1730607453683,0.0090209,68478.0,68477.0,0.59793629]
[1730607453909,9e-07,68478.0,68477.0,0.51526563]
[1730607454376,9e-07,68478.0,68477.0,0.61212538]
[1730607454826,9e-07,68478.0,68477.0,0.61170981]
[1730607455039,9e-07,68478.0,68477.0,0.62670981]
[1730607455284,0.000828,68497.0,68477.0,0.62670981]
[1730607455285,0.000828,68497.0,68485.0,0.16796343]
[1730607455506,0.000828,68497.0,68485.0,0.34708902]
[1730607455721,0.000828,68497.0,68485.0,0.38833906]
[1730607457310,0.000828,68497.0,68485.0,0.39233906]
[1730607457546,0.000828,68497.0,68485.0,0.5491361]
[1730607457766,0.21985247,68497.0,68485.0,0.5451361]
[1730607457985,0.21985247,68497.0,68485.0,0.65166252]
[1730607458210,0.21985247,68497.0,68485.0,0.5381361]
[1730607458435,0.21985247,68497.0,68485.0,0.5471361]
[1730607458923,0.21985247,68497.0,68485.0,0.41576047]
[1730607459157,0.21985247,68497.0,68485.0,0.41776047]
[1730607459399,0.21985247,68497.0,68485.0,0.42876047]
[1730607460514,0.21985247,68497.0,68485.0,0.42676047]
[1730607463390,0.21985247,68497.0,68485.0,0.42176047]
[1730607464288,0.21985247,68497.0,68485.0,0.30676047]
[1730607464750,0.21985247,68497.0,68485.0,0.31776047]
[1730607465227,0.0779,68490.0,68485.0,0.30576047]
[1730607465459,0.0779,68490.0,68485.0,0.30676047]
[1730607465681,0.0779,68490.0,68485.0,0.41776047]
[1730607466114,0.0779,68490.0,68485.0,0.41276047]
[1730607466351,0.0779,68490.0,68485.0,0.41776047]
[1730607466549,0.0779,68490.0,68485.0,0.41276047]
[1730607466987,0.0779,68490.0,68485.0,0.40176047]
[1730607467209,0.0779,68490.0,68485.0,0.41676047]
[1730607472753,0.04848857,68488.0,68485.0,0.41676047]
[1730607480486,0.01444583,68486.0,68485.0,0.41676047]
[1730607482550,0.03632022,68486.0,68485.0,0.41676047]
[1730607483746,0.03632022,68486.0,68485.0,0.16574347]
[1730607484231,0.000828,68486.0,68485.0,0.16574347]
[1730607484482,0.03637694,68486.0,68485.0,0.31176047]
[1730607484713,0.18239194,68486.0,68485.0,0.01994643]
[1730607485658,0.18238075,68486.0,68485.0,0.01994643]
[1730607485866,0.26141503,68486.0,68485.0,0.015]
[1730607486122,0.42440464,68486.0,68485.0,0.015]
[1730607486374,0.34537036,68486.0,68485.0,0.015]
[1730607486852,0.14603,68479.0,68478.0,0.001636]
[1730607487091,0.38290203,68479.0,68478.0,0.001636]
[1730607487783,0.30384304,68479.0,68478.0,0.001636]
[1730607488264,0.30384304,68479.0,68478.0,0.005636]
[1730607488484,0.30384304,68479.0,68478.0,0.001636]
[1730607488940,0.30384304,68479.0,68478.0,0.005636]
[1730607489179,0.30484304,68479.0,68478.0,0.015636]
[1730607490116,0.30384304,68479.0,68478.0,0.005636]
[1730607490351,0.30384304,68479.0,68478.0,0.001636]
[1730607490580,0.30484304,68479.0,68478.0,0.015636]
[1730607490831,0.30484304,68479.0,68478.0,0.011636]
[1730607491056,0.30384304,68479.0,68478.0,0.001636]
[1730607491281,0.30384304,68479.0,68478.0,0.005636]
[1730607491511,0.30381062,68479.0,68478.0,0.001636]
[1730607491939,0.30381062,68479.0,68478.0,0.004636]
[1730607492463,0.30481062,68479.0,68478.0,0.009636]
[1730607492926,0.30381062,68479.0,68478.0,0.004636]
[1730607493406,0.30481062,68479.0,68478.0,0.009636]
[1730607498459,0.26933,68479.0,68478.0,0.009636]
[1730607498714,0.304792,68479.0,68478.0,0.009636]
[1730607503997,0.43493732,68479.0,68478.0,0.009636]
[1730607505595,0.304792,68479.0,68478.0,0.009636]
[1730607505827,0.26933,68479.0,68478.0,0.009636]
[1730607506133,0.30481311,68479.0,68478.0,0.009636]
[1730607507805,0.38389986,68479.0,68478.0,0.009636]
[1730607508278,0.03648311,68479.0,68478.0,0.38549822]
[1730607508714,0.03648311,68479.0,68478.0,0.30641147]
[1730607509389,0.03548311,68479.0,68478.0,0.30141147]
[1730607509844,0.03548311,68479.0,68478.0,0.30841147]
[1730607509845,0.03651497,68479.0,68478.0,0.30841147]
[1730607510086,0.03651497,68479.0,68478.0,0.31241147]
[1730607510533,0.03651497,68479.0,68478.0,0.30841147]
[1730607510763,0.03651497,68479.0,68478.0,0.31241147]
[1730607511006,0.03651497,68479.0,68478.0,0.30841147]
[1730607511460,0.03651497,68479.0,68478.0,0.31241147]
[1730607511687,0.03551497,68479.0,68478.0,0.30241147]
[1730607511922,0.03551497,68479.0,68478.0,0.31141147]
[1730607512488,0.0136596,68479.0,68478.0,0.41241147]
[1730607512960,0.0136596,68479.0,68478.0,0.42141147]
[1730607513188,0.000818,68485.0,68484.0,0.15596543]
[1730607513432,0.000818,68485.0,68484.0,0.30176247]
[1730607513666,0.03636885,68485.0,68484.0,0.30176247]
[1730607513893,0.03636885,68485.0,68484.0,0.30676247]
[1730607514527,0.03636885,68485.0,68484.0,0.31076247]
[1730607515243,0.03636885,68485.0,68484.0,0.31976247]
[1730607517083,0.03635488,68485.0,68484.0,0.31976247]
[1730607517304,0.03635488,68485.0,68484.0,0.31476247]
[1730607517527,0.03635488,68485.0,68484.0,0.31976247]
[1730607517966,0.03635488,68485.0,68484.0,0.31476247]
[1730607518439,0.08595488,68485.0,68484.0,0.16374347]
[1730607518672,0.08595488,68485.0,68484.0,0.30976247]
[1730607519633,0.08595488,68485.0,68484.0,0.31476247]
[1730607519858,0.08595488,68485.0,68484.0,0.30976247]
[1730607520803,0.08594414,68485.0,68484.0,0.30976247]
[1730607521041,0.050418,68485.0,68484.0,0.30976247]
[1730607521248,0.08594415,68485.0,68484.0,0.16374347]
[1730607521504,0.31026115,68485.0,68484.0,0.01794643]
[1730607522186,0.16424415,68485.0,68484.0,0.01794643]
[1730607522686,0.16424415,68485.0,68484.0,0.16396543]
[1730607522896,0.16424415,68485.0,68484.0,0.30976247]
[1730607524505,0.128718,68485.0,68484.0,0.30976247]
[1730607524744,0.16424559,68485.0,68484.0,0.30976247]
[1730607524975,0.16424659,68485.0,68484.0,0.30976247]
[1730607529342,0.11464659,68485.0,68484.0,0.30976247]
[1730607531597,0.03634659,68485.0,68484.0,0.30976247]
[1730607531873,0.03634659,68485.0,68484.0,0.41476247]
[1730607534099,0.03634659,68485.0,68484.0,0.41976247]
[1730607537332,0.03634659,68485.0,68484.0,0.42705219]
[1730607537333,0.01448284,68485.0,68484.0,0.42705219]
[1730607538504,0.01448284,68485.0,68484.0,0.42868819]
[1730607538723,0.01448284,68485.0,68484.0,0.50772658]
[1730607538980,0.000818,68485.0,68484.0,0.53695658]
[1730607539680,0.000818,68485.0,68484.0,0.52395658]
[1730607540115,0.000818,68485.0,68484.0,0.52795658]
[1730607540327,0.000818,68485.0,68484.0,0.57315658]
[1730607540804,0.000818,68485.0,68484.0,0.63851631]
[1730607541051,0.000818,68485.0,68484.0,0.79917256]
[1730607541259,0.000818,68485.0,68484.0,0.81209368]
[1730607541684,0.000818,68485.0,68484.0,0.64243863]
[1730607541907,0.000818,68485.0,68484.0,0.64414891]
[1730607542120,0.000818,68485.0,68484.0,0.65143007]
[1730607542354,0.000818,68485.0,68484.0,0.65343007]
[1730607542604,0.000818,68485.0,68484.0,0.58814802]
[1730607544513,0.000818,68485.0,68484.0,0.59314802]
[1730607544748,0.000818,68485.0,68484.0,0.9415528]
[1730607544957,0.000828,68486.0,68485.0,0.25796343]
[1730607545178,0.000828,68486.0,68485.0,0.68091213]
[1730607545391,0.000828,68486.0,68485.0,0.57656163]
[1730607545638,0.000828,68486.0,68485.0,0.68525031]
[1730607546084,0.000828,68486.0,68485.0,0.7692887]
[1730607546512,0.000828,68486.0,68485.0,0.73245847]
[1730607546739,0.000828,68486.0,68485.0,0.73045847]
[1730607547206,0.000828,68486.0,68485.0,0.73245847]
[1730607547641,0.000828,68486.0,68485.0,0.72345847]
[1730607548305,0.000828,68486.0,68485.0,0.71945847]
[1730607548516,0.000828,68486.0,68485.0,0.61979163]
[1730607549193,0.000828,68486.0,68485.0,0.61977537]
[1730607549418,0.000828,68486.0,68485.0,0.8074806]
[1730607549823,0.000828,68486.0,68485.0,0.8951906]
[1730607550056,0.000828,68486.0,68485.0,0.95330731]
[1730607550302,0.000918,68502.0,68501.0,0.38286943]
[1730607550550,0.000918,68502.0,68501.0,0.41706943]
[1730607551034,0.21602447,68509.0,68508.0,0.29014443]
[1730607551261,0.21602447,68509.0,68508.0,0.36918282]
[1730607551482,4.503e-05,68511.0,68510.0,0.03917643]
[1730607551699,0.0098479,68513.0,68511.0,0.29013743]
[1730607551951,0.0098479,68513.0,68511.0,0.51497286]
[1730607552178,0.0098479,68513.0,68511.0,0.43593447]
[1730607552387,0.0098479,68513.0,68511.0,0.51497286]
[1730607552836,0.0098479,68513.0,68511.0,0.5185977]
[1730607554183,0.0098479,68513.0,68511.0,0.5225977]
[1730607554411,0.0006749,68513.0,68512.0,0.18513543]
[1730607554628,0.0006749,68513.0,68512.0,0.43885118]
[1730607554856,0.0006749,68513.0,68512.0,0.43593247]
[1730607555948,0.0006749,68513.0,68512.0,0.41570247]
[1730607556588,0.0006749,68513.0,68512.0,0.41970247]
[1730607557268,0.0006749,68513.0,68512.0,0.80016533]
[1730607557486,0.0006749,68513.0,68512.0,0.66472107]
[1730607557695,0.0006749,68513.0,68512.0,0.70993046]
[1730607557906,0.0006749,68513.0,68512.0,0.71893046]
[1730607558339,0.0006749,68513.0,68512.0,0.70993046]
[1730607558813,0.0006749,68513.0,68512.0,0.76881633]
[1730607559244,9e-07,68520.0,68519.0,0.02194643]
[1730607559453,9e-07,68520.0,68519.0,0.85252303]
[1730607559711,9e-07,68526.0,68525.0,0.19710843]
[1730607559915,9e-07,68526.0,68525.0,0.56607126]
[1730607560130,9e-07,68526.0,68525.0,0.62026112]
[1730607560555,9e-07,68526.0,68525.0,0.57037525]
[1730607560768,9e-07,68526.0,68525.0,0.54514525]
[1730607561443,9e-07,68526.0,68525.0,0.59183945]
[1730607561654,9e-07,68526.0,68525.0,0.55414525]
[1730607561859,9e-07,68526.0,68525.0,0.43389747]
[1730607562542,9e-07,68526.0,68525.0,0.43557137]
[1730607562777,0.0754,68533.0,68532.0,0.26086343]
[1730607562987,0.0754,68533.0,68532.0,0.40666047]
[1730607563202,0.0704,68533.0,68532.0,0.40666047]
[1730607563433,0.1188,68533.0,68532.0,0.40166047]
[1730607563678,0.1188,68533.0,68522.0,0.291874]
[1730607563679,0.14593,68526.0,68525.0,0.009]
[1730607563906,0.194349,68517.0,68510.0,0.32677898]
[1730607564360,0.31459678,68517.0,68510.0,0.10775451]
[1730607564570,0.32817704,68517.0,68510.0,0.10775451]
[1730607564789,0.20792926,68517.0,68510.0,0.10775451]
[1730607565013,0.20792926,68517.0,68510.0,0.25371751]
[1730607565235,0.20792926,68517.0,68510.0,0.25371651]
[1730607565452,0.20792926,68517.0,68510.0,0.10775451]
[1730607565625,0.32817704,68517.0,68516.0,0.0521018]
[1730607566042,0.32817704,68517.0,68516.0,0.0431018]
[1730607566278,0.49577164,68517.0,68516.0,0.0431018]
[1730607566494,0.49577164,68517.0,68516.0,0.007]
[1730607566495,0.28332926,68517.0,68516.0,0.007]
[1730607566899,0.28333767,68517.0,68516.0,0.007]
[1730607568380,0.145957,68513.0,68512.0,0.001636]
[1730607568605,0.25948662,68513.0,68512.0,0.001636]
[1730607568811,0.01358867,68513.0,68512.0,0.001636]
[1730607569238,0.145957,68513.0,68512.0,0.001636]
[1730607569440,0.15954567,68513.0,68512.0,0.001636]
[1730607569663,0.16054567,68513.0,68512.0,0.013636]
[1730607569906,0.16054567,68513.0,68512.0,0.009636]
[1730607570348,0.16054567,68513.0,68512.0,0.013636]
[1730607570516,0.1605572,68513.0,68512.0,0.009636]
[1730607570963,0.0146002,68513.0,68512.0,0.013636]
[1730607571190,0.001,68513.0,68512.0,0.013636]
[1730607571623,0.0136002,68515.0,68512.0,0.005636]
[1730607571845,0.0136002,68514.0,68512.0,0.151595]
[1730607572069,0.0146002,68513.0,68512.0,0.159595]
[1730607572276,0.0146002,68513.0,68512.0,0.013636]
[1730607572496,0.0136002,68513.0,68512.0,0.005636]
[1730607572710,0.0136002,68513.0,68512.0,0.001636]
[1730607572916,0.001,68515.0,68513.0,0.145957]
[1730607573141,0.001,68515.0,68514.0,0.145955]
[1730607573359,0.01460474,68515.0,68514.0,0.145955]
[1730607574058,0.001,68515.0,68514.0,0.145955]
[1730607574283,0.1238,68517.0,68516.0,0.145951]
[1730607574489,0.1374102,68517.0,68516.0,0.145951]
[1730607575813,0.1238,68517.0,68516.0,0.145951]
[1730607576016,0.1238,68517.0,68516.0,0.146951]
[1730607576647,0.1238,68517.0,68516.0,0.29274804]
[1730607576648,0.0754,68517.0,68516.0,0.29274804]
[1730607577710,0.0754,68517.0,68516.0,0.29574804]
[1730607578124,0.0754,68524.0,68523.0,0.145936]
[1730607578327,0.08901624,68524.0,68523.0,0.145936]
[1730607579534,0.08901624,68524.0,68523.0,0.148936]
[1730607579975,0.08901624,68524.0,68523.0,0.146936]
[1730607579976,0.10301624,68524.0,68523.0,0.146936]
[1730607580188,0.0894,68524.0,68523.0,0.149936]
[1730607580602,0.0894,68524.0,68523.0,0.29573304]
[1730607580819,0.014,68524.0,68523.0,0.29573304]
[1730607581029,0.014,68524.0,68523.0,0.39573304]
[1730607581875,0.0754,68532.0,68530.0,0.14592]
[1730607582133,0.0754,68532.0,68531.0,0.145919]
[1730607582345,0.0754,68532.0,68529.0,0.145923]
[1730607582346,0.08901799,68532.0,68529.0,0.145923]
[1730607582618,0.01361799,68531.0,68528.0,0.291848]
[1730607582823,0.01361799,68530.0,68529.0,0.145922]
[1730607583501,0.29442447,68541.0,68530.0,0.291842]
[1730607583703,0.01361705,68540.0,68530.0,0.14579704]
[1730607583909,0.01361705,68540.0,68537.0,0.145905]
[1730607584134,0.0136166,68539.0,68537.0,0.145905]
[1730607584338,0.0136166,68540.0,68537.0,0.145905]
[1730607584560,0.0136166,68539.0,68538.0,0.145904]
[1730607584776,0.0136166,68539.0,68538.0,0.29170104]
[1730607584988,0.0484,68544.0,68543.0,0.145893]
[1730607585862,0.0484,68544.0,68543.0,0.29169004]
[1730607586074,0.0090209,68547.0,68543.0,0.29169004]
[1730607586075,0.0090209,68547.0,68546.0,0.145887]
[1730607586278,0.0090209,68547.0,68546.0,0.29168404]
[1730607587525,0.0100209,68547.0,68546.0,0.29968404]
[1730607588374,0.291702,68563.0,68556.0,0.145864]
[1730607588581,0.21902447,68557.0,68556.0,0.145864]
[1730607588786,0.145856,68561.0,68556.0,0.145864]
[1730607589447,0.145858,68560.0,68556.0,0.145864]
[1730607589862,0.145858,68560.0,68556.0,0.148864]
[1730607590064,0.145858,68560.0,68556.0,0.151864]
[1730607590535,0.000827,68571.0,68566.0,0.1]
[1730607590747,0.000827,68571.0,68557.0,0.24579704]
[1730607590748,0.21902447,68569.0,68557.0,0.24579704]
[1730607590960,0.000827,68571.0,68569.0,0.145837]
[1730607591174,0.000827,68571.0,68564.0,0.1]
[1730607591409,0.000827,68571.0,68559.0,0.1]
[1730607591410,0.000827,68571.0,68559.0,0.24579704]
[1730607591622,0.146662,68571.0,68561.0,0.1]
[1730607591839,0.146662,68571.0,68567.0,0.145841]
[1730607591840,0.000827,68571.0,68567.0,0.145841]
[1730607592053,0.145839,68569.0,68562.0,0.14579704]
[1730607592261,0.292498,68571.0,68565.0,0.145847]
[1730607592262,0.291672,68570.0,68565.0,0.145847]
[1730607592467,0.14584,68569.0,68565.0,0.145847]
[1730607592683,0.145836,68570.0,68566.0,0.145844]
[1730607593063,0.146661,68571.0,68566.0,0.145844]
[1730607593311,0.292496,68571.0,68567.0,0.003]
[1730607593525,0.145838,68570.0,68565.0,0.145845]
[1730607593760,0.000827,68571.0,68565.0,0.007]
[1730607593971,0.145844,68566.0,68565.0,0.01]
[1730607594186,0.145844,68566.0,68565.0,0.007]
[1730607595029,0.145844,68566.0,68562.0,0.145852]
[1730607595481,0.145847,68565.0,68559.0,0.291718]
[1730607595685,0.145843,68567.0,68559.0,0.291718]
[1730607595894,0.000827,68571.0,68564.0,0.145847]
[1730607595895,0.145839,68569.0,68564.0,0.145847]
[1730607596105,0.145839,68569.0,68565.0,0.007]
[1730607596330,0.145841,68568.0,68565.0,0.007]
[1730607596771,0.291672,68570.0,68562.0,0.291702]
[1730607597022,0.145839,68569.0,68564.0,0.145848]
[1730607597231,0.000827,68571.0,68564.0,0.21902447]
[1730607597441,0.000827,68571.0,68569.0,0.145838]
[1730607597645,0.000827,68571.0,68560.0,0.58343]
[1730607597646,0.000827,68571.0,68567.0,0.14584]